[Event "AI Cup Div-3 2023"]
[Site "Online"]
[Date "2023.09.25"]
[Round "1.2"]
[White "Malakhov, Vladimir"]
[Black "Kovalev, Vladislav"]
[Result "0-1"]
[Annotator "ChessBase"]
[ECO "E17"]
[WhiteElo "2646"]
[BlackElo "2582"]
[PlyCount "96"]
[EventDate "2023.09.18"]
[EventType "k.o."]
[EventCountry "NET"]
[SourceTitle "playchess.com"]
[Source "ChessBase"]
[SourceQuality "1"]
[TimeControl "900+3"]

1. Nf3 {[%emt 0:00:05]} d5 {[%emt 0:00:06]} 2. g3 {[%emt 0:00:03]} Nf6 {[%emt 0:00:05]} 3. Bg2 {[%emt 0:00:02]} b6 {[%emt 0:00:01]} 4. c4 {[%emt 0:00:56]} e6 {[%emt 0:00:01]} 5. O-O {[%emt 0:00:23]} Bb7 {[%emt 0:00:04]} 6. cxd5 {[%emt 0:00:22]} Nxd5 {[%emt 0:00:00]} 7. Nc3 {[%emt 0:00:17]} Be7 {[%emt 0:00:11]} 8. Nxd5 {[%emt 0:00:49]} exd5 {[%emt 0:00:08]} 9. d4 {[%emt 0:00:06]} Nd7 {[%emt 0:00:04]} 10. b3 {[%emt 0:01:22]} O-O {[%emt 0:00:03]} 11. Bb2 {[%emt 0:00:01]} Re8 {[%emt 0:00:10]} 12. Rc1 {[%emt 0:00:04]} Bd6 {[%emt 0:00:05]} 13. Qc2 {[%emt 0:01:06]} c6 {[%emt 0:00:07]} 14. Rfe1 {[%emt 0:00:21]} Qe7 {[%emt 0:00:17]} 15. Nh4 {[%emt 0:01:02]} Nf6 {[%emt 0:00:50]} 16. Nf5 {[%emt 0:00:27]} Qd7 {[%emt 0:00:18]} 17. Nxd6 {[%emt 0:01:34]} Qxd6 {[%emt 0:00:00]} 18. f3 {[%emt 0:00:02]} Re3 {[%emt 0:00:17]} 19. Rcd1 {[%emt 0:00:15]} Rae8 {[%emt 0:00:01]} 20. Bc1 {[%emt 0:00:05]} R3e7 {[%emt 0:00:00]} 21. e4 {[%emt 0:00:29]} dxe4 {[%emt 0:00:01]} 22. fxe4 {[%emt 0:00:02]} c5 {[%emt 0:01:40]} 23. dxc5 {[%emt 0:00:28]} Qc7 {[%emt 0:00:10]} 24. c6 {[%emt 0:02:24]} Qxc6 {[%emt 0:00:39]} 25. Qxc6 {[%emt 0:00:08]} Bxc6 {[%emt 0:00:00]} 26. Bg5 {[%emt 0:00:07]} Re5 {[%emt 0:00:27]} 27. Bf4 {[%emt 0:01:06]} R5e6 {[%emt 0:00:03]} 28. e5 {[%emt 0:00:04]} Bxg2 {[%emt 0:00:02]} 29. Kxg2 {[%emt 0:00:01]} h6 {[%emt 0:00:18]} 30. h3 {[%emt 0:00:32]} g5 {[%emt 0:00:32]} 31. Bc1 {[%emt 0:00:27]} Rxe5 {[%emt 0:00:03]} 32. Rxe5 {[%emt 0:00:02]} Rxe5 {[%emt 0:00:00]} 33. Kf3 {[%emt 0:00:01]} Rf5+ {[%emt 0:02:02]} 34. Ke3 {[%emt 0:00:06]} Re5+ {[%emt 0:02:54]} 35. Kf3 {[%emt 0:00:02]} Rd5 {[%emt 0:00:00]} 36. Rxd5 {[%emt 0:00:12]} Nxd5 {[%emt 0:00:00]} 37. Ke4 {[%emt 0:00:15]} Nc3+ {[%emt 0:00:01]} 38. Kd3 {[%emt 0:00:01]} Nxa2 {[%emt 0:00:03]} 39. Bd2 {[%emt 0:00:00]} f5 {[%emt 0:02:19]} 40. Kc4 {[%emt 0:00:03]} Kf7 {[%emt 0:00:07]} 41. Kb5 {[%emt 0:00:39]} Ke6 {[%emt 0:00:11]} 42. Ka6 {[%emt 0:00:01]} Kd5 {[%emt 0:00:08]} 43. Kxa7 {[%emt 0:00:01]} b5 {[%emt 0:00:00]} 44. Kb6 {[%emt 0:00:10]} b4 {[%emt 0:00:04]} 45. Kb5 {[%emt 0:00:07]} Kd4 {[%emt 0:00:43]} 46. Be1 {[%emt 0:00:17]} f4 {[%emt 0:00:12]} 47. gxf4 {[%emt 0:00:03]} gxf4 {[%emt 0:00:00]} 48. Bf2+ {[%emt 0:00:04]} Kd3 {[%emt 0:00:04]} 0-1

[Event "AI Cup Div-3 2023"]
[Site "Online"]
[Date "2023.09.25"]
[Round "1.2"]
[White "Mamedov, Rauf"]
[Black "Makarian, Rudik"]
[Result "1-0"]
[Annotator "ChessBase"]
[ECO "C54"]
[WhiteElo "2640"]
[BlackElo "2548"]
[PlyCount "73"]
[EventDate "2023.09.18"]
[EventType "k.o."]
[EventCountry "NET"]
[SourceTitle "playchess.com"]
[Source "ChessBase"]
[SourceQuality "1"]
[TimeControl "900+3"]

1. e4 {[%emt 0:00:03]} e5 {[%emt 0:00:10]} 2. Nf3 {[%emt 0:00:02]} Nc6 {[%emt 0:00:00]} 3. Bc4 {[%emt 0:00:12]} Bc5 {[%emt 0:00:08]} 4. c3 {[%emt 0:00:08]} Nf6 {[%emt 0:00:01]} 5. d3 {[%emt 0:00:11]} d6 {[%emt 0:00:04]} 6. Nbd2 {[%emt 0:00:03]} O-O {[%emt 0:00:06]} 7. O-O {[%emt 0:00:11]} a5 {[%emt 0:00:04]} 8. Re1 {[%emt 0:00:29]} Bb6 {[%emt 0:00:27]} 9. Nf1 {[%emt 0:00:08]} Be6 {[%emt 0:00:17]} 10. Ng3 {[%emt 0:00:20]} Bxc4 {[%emt 0:00:45]} 11. dxc4 {[%emt 0:00:02]} Nd7 {[%emt 0:01:16]} 12. h3 {[%emt 0:00:36]} Kh8 {[%emt 0:00:17]} 13. Rb1 {[%emt 0:00:25]} Nc5 {[%emt 0:00:18]} 14. Be3 {[%emt 0:00:10]} Nd7 {[%emt 0:00:45]} 15. Bd2 {[%emt 0:00:16]} Nc5 {[%emt 0:00:07]} 16. Bg5 {[%emt 0:00:03]} f6 {[%emt 0:00:03]} 17. Be3 {[%emt 0:00:02]} Nd7 {[%emt 0:00:02]} 18. Bc1 {[%emt 0:01:16]} Nc5 {[%emt 0:00:06]} 19. h4 {[%emt 0:00:29]} Ne6 {[%emt 0:02:25]} 20. h5 {[%emt 0:00:03]} Ne7 {[%emt 0:00:30]} 21. Nh4 {[%emt 0:00:05]} Qd7 {[%emt 0:00:13]} 22. Qg4 {[%emt 0:00:59]} Nc5 {[%emt 0:00:15]} 23. Qe2 {[%emt 0:00:20]} Qe6 {[%emt 0:00:58]} 24. Ngf5 {[%emt 0:00:37]} Rf7 {[%emt 0:01:19]} 25. b3 {[%emt 0:02:55]} Nxf5 {[%emt 0:00:16]} 26. exf5 {[%emt 0:00:03]} Qd7 {[%emt 0:00:06]} 27. Be3 {[%emt 0:00:37]} Qc6 {[%emt 0:00:29]} 28. Rbd1 {[%emt 0:01:09]} a4 {[%emt 0:00:11]} 29. b4 {[%emt 0:01:10]} Ne4 {[%emt 0:02:31]} 30. c5 {[%emt 0:00:02]} Nxc3 {[%emt 0:01:56]} 31. Qc4 {[%emt 0:00:03]} Nxd1 {[%emt 0:00:07]} 32. Qxf7 {[%emt 0:00:06]} Nc3 {[%emt 0:00:17]} 33. h6 {[%emt 0:00:11]} Rg8 {[%emt 0:00:09]} 34. hxg7+ {[%emt 0:00:02]} Rxg7 {[%emt 0:00:01]} 35. Qf8+ {[%emt 0:00:01]} Rg8 {[%emt 0:00:00]} 36. Ng6+ {[%emt 0:00:01]} hxg6 {[%emt 0:00:02]} 37. Qh6# {[%emt 0:00:01]} 1-0

[Event "AI Cup Div-3 2023"]
[Site "Online"]
[Date "2023.09.25"]
[Round "1.2"]
[White "Yilmaz, Mustafa"]
[Black "Sevian, Samuel"]
[Result "0-1"]
[Annotator "TA"]
[ECO "D38"]
[WhiteElo "2640"]
[BlackElo "2698"]
[PlyCount "86"]
[EventDate "2023.09.18"]
[EventType "k.o."]
[EventCountry "NET"]
[SourceTitle "playchess.com"]
[Source "ChessBase"]
[SourceQuality "1"]
[TimeControl "900+3"]

{[%evp 17,86,-12,-4,-4,-10,-22,-26,-18,-5,-24,-20,-15,-10,-63,-57,-53,-67,-43,-71,-76,-77,-72,-31,-55,-49,-53,-37,-52,-47,-62,-103,-103,-103,-103,-90,-87,-86,-82,-82,-143,0,-111,-6,-52,-18,-18,-44,-375,-373,-716,-703,-775,-757,-668,-627,-537,-468,-1822,-1406,-5683,-5305,-5302,-3844,-3240,-2900,-5704,-5297,-29988,-29989,-29989,-29990]} 1. d4 {[%emt 0:00:06]} Nf6 {[%emt 0:00:04]} 2. c4 {[%emt 0:00:01]} e6 {[%emt 0:00:01]} 3. Nf3 {[%emt 0:00:01]} d5 {[%emt 0:00:00]} 4. Nc3 {[%emt 0:00:01]} Bb4 {[%emt 0:00:01]} 5. Bg5 {[%emt 0:00:28]} h6 {[%emt 0:00:02]} 6. Bxf6 {[%emt 0:00:16]} Qxf6 {[%emt 0:00:00]} 7. a3 {[%emt 0:00:01]} Bxc3+ {[%emt 0:00:05]} 8. bxc3 {[%emt 0:00:00]} O-O {[%emt 0:00:11]} 9. e3 {[%emt 0:00:02] [#]} c5 $1 {[%emt 0:00:04]} 10. h4 {[%emt 0:01:00] [#] D38: Queen's Gambit Declined: Ragozin Defence (4 Nf3 Bb4).} ({Reject} 10. dxc5 Qxc3+ 11. Nd2 d4 12. exd4 (12. Rc1 $2 Qxa3 13. exd4 Nc6 $19) 12... Qxd4 $17) (10. Qc2 Nd7) 10... Qd8 $146 {[%emt 0:00:01]} ({Predecessor:} 10... cxd4 11. cxd4 dxc4 12. g4 b5 13. g5 Qf5 14. Bh3 Qe4 15. gxh6 Bb7 16. Bg2 gxh6 17. Rg1 Kh8 {1-0 Indjic,A (2641)-Bluebaum,M (2663) Titled Tuesday intern op 28th Feb Late blitz 2023 (7)}) 11. cxd5 {[%emt 0:01:15]} exd5 {[%emt 0:00:16]} 12. Bd3 {[%emt 0:00:02] Black has an edge.} Bg4 {[%emt 0:00:29]} 13. Bc2 {[%emt 0:00:50]} Nd7 {[%emt 0:04:27]} 14. Qd3 {[%emt 0:01:18][%csl Gc2][%cal Rd3h7]} g6 {[%emt 0:00:03]} 15. h5 {[%emt 0:00:27]} Bxh5 $15 {[%emt 0:00:48]} 16. Rxh5 {[%emt 0:01:17][%mdl 64] Double Attack} c4 {[%emt 0:00:02]} 17. Qe2 {[%emt 0:00:01]} gxh5 {[%emt 0:00:01]} 18. Kd2 {[%emt 0:00:02]} Re8 {[%emt 0:00:06]} 19. Rh1 {[%emt 0:00:03]} Nf6 {[%emt 0:00:01] ...Ne4+ is the strong threat.} (19... Re6 {feels hotter.} 20. Nh4 Qg5 21. Nf5 Nf6) 20. Ne5 {[%emt 0:00:12] [#]} Rxe5 $1 {[%emt 0:00:54]} 21. dxe5 {[%emt 0:00:02]} Ne4+ {[%emt 0:00:01]} 22. Bxe4 {[%emt 0:01:17]} dxe4+ {[%emt 0:00:02][%mdl 4096] Endgame KQR-KQR} 23. Kc2 {[%emt 0:00:01]} Rc8 {[%emt 0:02:01]} 24. Rxh5 {[%emt 0:00:50]} Qd3+ $1 {[%emt 0:00:56]} 25. Qxd3 {[%emt 0:00:01]} exd3+ $17 {[%emt 0:00:01] KR-KR} 26. Kc1 {[%emt 0:01:10]} Rc6 {[%emt 0:00:02]} 27. Rh4 {[%emt 0:00:08] [#]} b5 $1 {[%emt 0:00:38]} 28. Rd4 {[%emt 0:00:03]} (28. Kb2 $142) 28... Kf8 {[%emt 0:00:07]} (28... Ra6 $17 29. Kb2 f6 30. exf6 Rxf6) 29. Rd5 {[%emt 0:02:50] [#]} (29. Rd6 $11 {remains equal.} Rxd6 30. exd6) 29... Rb6 {[%emt 0:00:28]} ({Black should play} 29... Ra6 $1 $17 {[%cal Ra6a3]} 30. Kb2 Rg6) 30. Kd2 {[%emt 0:01:18]} (30. Rd6 $11) 30... Ra6 {[%emt 0:00:42]} 31. Rxb5 {[%emt 0:00:17]} Rxa3 {[%emt 0:00:01] White must now prevent ...a5.} 32. e4 $2 {[%emt 0:00:27][%mdl 8192] White does not recover from this.} (32. f4 $15) 32... Ra2+ $19 {[%emt 0:00:13]} 33. Ke3 $2 {[%emt 0:00:00]} (33. Kd1 Rxf2 34. Rc5) 33... Re2+ {[%emt 0:00:01]} 34. Kf3 {[%emt 0:00:01]} Re1 {[%emt 0:00:00] aiming for ...d2.} 35. Rb2 {[%emt 0:00:17]} a5 {[%emt 0:00:01][%cal Ba7a5,Ba5a4,Ba4a3][%mdl 32]} 36. Kf4 {[%emt 0:00:25]} a4 {[%emt 0:00:05] Hoping for ...Re2.} 37. Kf5 {[%emt 0:00:04]} (37. Ra2 $142 a3 38. Kf3) 37... a3 {[%emt 0:00:16]} 38. Rb7 {[%emt 0:00:13]} d2 {[%emt 0:00:48]} 39. Kf6 {[%emt 0:00:03]} Ke8 {[%emt 0:00:22]} (39... d1=B $2 40. Rb8#) 40. Rb8+ {[%emt 0:00:06]} Kd7 {[%emt 0:00:03]} 41. Kxf7 {[%emt 0:00:00]} d1=Q {[%emt 0:00:04]} ({Not} 41... d1=B 42. e6+ Kc7 43. Ra8 $11) 42. e6+ {[%emt 0:00:01]} Kc7 {[%emt 0:00:01]} 43. e7 {[%emt 0:00:02]} Qh5+ {[%emt 0:00:01] Weighted Error Value: White=0.94/Black=0.27 (precise)} 0-1

[Event "AI Cup Div-3 2023"]
[Site "Online"]
[Date "2023.09.25"]
[Round "1.2"]
[White "Guseinov, Gadir"]
[Black "Martinez Alcantara, Jose Eduardo"]
[Result "0-1"]
[Annotator "ChessBase"]
[ECO "C44"]
[WhiteElo "2636"]
[BlackElo "2611"]
[PlyCount "134"]
[EventDate "2023.09.18"]
[EventType "k.o."]
[EventCountry "NET"]
[SourceTitle "playchess.com"]
[Source "ChessBase"]
[SourceQuality "1"]
[TimeControl "900+3"]

1. e4 {[%emt 0:00:03]} e5 {[%emt 0:00:09]} 2. Nf3 {[%emt 0:00:05]} Nc6 {[%emt 0:00:01]} 3. d4 {[%emt 0:00:18]} exd4 {[%emt 0:00:06]} 4. Bc4 {[%emt 0:00:02]} Bb4+ {[%emt 0:00:17]} 5. c3 {[%emt 0:00:04]} dxc3 {[%emt 0:00:03]} 6. O-O {[%emt 0:00:13]} c2 {[%emt 0:00:39]} 7. Qxc2 {[%emt 0:00:12]} d6 {[%emt 0:00:12]} 8. a3 {[%emt 0:00:56]} Ba5 {[%emt 0:00:25]} 9. b4 {[%emt 0:00:03]} Bb6 {[%emt 0:00:01]} 10. Qb3 {[%emt 0:00:21]} Qf6 {[%emt 0:03:03]} 11. Bb2 {[%emt 0:00:32]} Ne5 {[%emt 0:01:20]} 12. Nxe5 {[%emt 0:01:09]} dxe5 {[%emt 0:00:00]} 13. Qg3 {[%emt 0:02:08]} Qg6 {[%emt 0:01:12]} 14. Qxe5+ {[%emt 0:00:20]} Ne7 {[%emt 0:00:01]} 15. Qxg7 {[%emt 0:00:33]} Qxg7 {[%emt 0:00:02]} 16. Bxg7 {[%emt 0:00:00]} Rg8 {[%emt 0:00:00]} 17. Be5 {[%emt 0:00:06]} Ng6 {[%emt 0:01:17]} 18. Bg3 {[%emt 0:00:46]} h5 {[%emt 0:00:03]} 19. h4 {[%emt 0:00:15]} Bd4 {[%emt 0:00:42]} 20. Ra2 {[%emt 0:00:03]} Ne5 {[%emt 0:00:02]} 21. Bxe5 {[%emt 0:00:46]} Bxe5 {[%emt 0:00:02]} 22. g3 {[%emt 0:00:59]} Bg4 {[%emt 0:00:38]} 23. Be2 {[%emt 0:00:07]} O-O-O {[%emt 0:01:48]} 24. Bxg4+ {[%emt 0:00:08]} Rxg4 {[%emt 0:00:00]} 25. Re2 {[%emt 0:00:07]} Rd3 {[%emt 0:00:28]} 26. Kg2 {[%emt 0:00:21]} b6 {[%emt 0:00:18]} 27. Rfe1 {[%emt 0:00:30]} Bxg3 {[%emt 0:00:44]} 28. fxg3 {[%emt 0:00:03]} Rdxg3+ {[%emt 0:00:00]} 29. Kf2 {[%emt 0:00:09]} Rh3 {[%emt 0:00:13]} 30. Rf1 {[%emt 0:00:18]} Rf4+ {[%emt 0:00:10]} 31. Ke1 {[%emt 0:00:23]} Rxf1+ {[%emt 0:00:00]} 32. Kxf1 {[%emt 0:00:00]} Rh1+ {[%emt 0:00:00]} 33. Kg2 {[%emt 0:00:00]} Rxb1 {[%emt 0:00:01]} 34. Rf2 {[%emt 0:00:01]} Re1 {[%emt 0:00:20]} 35. Rf4 {[%emt 0:00:22]} Re3 {[%emt 0:00:24]} 36. a4 {[%emt 0:00:22]} Kd8 {[%emt 0:00:07]} 37. Kf2 {[%emt 0:00:04]} Rb3 {[%emt 0:00:01]} 38. Rxf7 {[%emt 0:00:01]} Rxb4 {[%emt 0:00:01]} 39. Ke3 {[%emt 0:00:06]} Rxa4 {[%emt 0:00:32]} 40. Rh7 {[%emt 0:00:04]} Ra1 {[%emt 0:00:05]} 41. Rxh5 {[%emt 0:00:20]} a5 {[%emt 0:00:01]} 42. Rh8+ {[%emt 0:00:11]} Kd7 {[%emt 0:00:01]} 43. h5 {[%emt 0:00:03]} a4 {[%emt 0:00:01]} 44. h6 {[%emt 0:00:01]} a3 {[%emt 0:00:06]} 45. Ra8 {[%emt 0:00:22]} Rh1 {[%emt 0:00:02]} 46. Kf4 {[%emt 0:00:05]} Rxh6 {[%emt 0:00:07]} 47. Rxa3 {[%emt 0:00:01]} c5 {[%emt 0:00:24]} 48. Kf5 {[%emt 0:00:09]} c4 {[%emt 0:00:07]} 49. e5 {[%emt 0:00:04]} Rh1 {[%emt 0:00:18]} 50. Ra7+ {[%emt 0:00:44]} Kc6 {[%emt 0:00:02]} 51. e6 {[%emt 0:00:00]} Re1 {[%emt 0:00:05]} 52. Kf6 {[%emt 0:00:14]} b5 {[%emt 0:00:29]} 53. e7 {[%emt 0:00:01]} b4 {[%emt 0:00:09]} 54. Ra1 {[%emt 0:01:03]} Re2 {[%emt 0:00:02]} 55. Ra2 {[%emt 0:00:06]} Re3 {[%emt 0:00:00]} 56. Ra8 {[%emt 0:00:02]} b3 {[%emt 0:00:11]} 57. e8=Q+ {[%emt 0:00:11]} Rxe8 {[%emt 0:00:00]} 58. Rxe8 {[%emt 0:00:00]} b2 {[%emt 0:00:07]} 59. Rb8 {[%emt 0:00:06]} c3 {[%emt 0:00:01]} 60. Ke5 {[%emt 0:00:19]} c2 {[%emt 0:00:02]} 61. Rc8+ {[%emt 0:00:07]} Kd7 {[%emt 0:00:03]} 62. Rxc2 {[%emt 0:00:02]} b1=Q {[%emt 0:00:01]} 63. Rc4 {[%emt 0:00:01]} Qb5+ {[%emt 0:00:02]} 64. Kd4 {[%emt 0:00:01]} Kd6 {[%emt 0:00:01]} 65. Rc3 {[%emt 0:00:08]} Qb4+ {[%emt 0:00:03]} 66. Rc4 {[%emt 0:00:02]} Qd2+ {[%emt 0:00:01]} 67. Ke4 {[%emt 0:00:02]} Qd5+ {[%emt 0:00:01]} 0-1

[Event "AI Cup Div-3 2023"]
[Site "Online"]
[Date "2023.09.25"]
[Round "1.2"]
[White "Sargsyan, Shant"]
[Black "Durarbayli, Vasif"]
[Result "1/2-1/2"]
[Annotator "ChessBase"]
[ECO "D13"]
[WhiteElo "2631"]
[BlackElo "2625"]
[PlyCount "82"]
[EventDate "2023.09.18"]
[EventType "k.o."]
[EventCountry "NET"]
[SourceTitle "playchess.com"]
[Source "ChessBase"]
[SourceQuality "1"]
[TimeControl "900+3"]

1. d4 {[%emt 0:00:16]} d5 {[%emt 0:00:07]} 2. Nf3 {[%emt 0:00:03]} Nf6 {[%emt 0:00:02]} 3. c4 {[%emt 0:00:04]} c6 {[%emt 0:00:04]} 4. Nc3 {[%emt 0:00:07]} e6 {[%emt 0:00:03]} 5. Bg5 {[%emt 0:00:04]} Be7 {[%emt 0:00:02]} 6. cxd5 {[%emt 0:00:07]} cxd5 {[%emt 0:00:56]} 7. e3 {[%emt 0:00:04]} O-O {[%emt 0:00:08]} 8. Bd3 {[%emt 0:00:02]} Nc6 {[%emt 0:00:03]} 9. O-O {[%emt 0:00:01]} h6 {[%emt 0:00:14]} 10. Bh4 {[%emt 0:00:05]} Bd7 {[%emt 0:00:39]} 11. Rc1 {[%emt 0:00:03]} Rc8 {[%emt 0:00:06]} 12. Ne5 {[%emt 0:00:06]} Ne8 {[%emt 0:00:37]} 13. Bxe7 {[%emt 0:00:20]} Qxe7 {[%emt 0:00:37]} 14. f4 {[%emt 0:00:02]} Nd6 {[%emt 0:00:16]} 15. Qg4 {[%emt 0:00:15]} f5 {[%emt 0:00:21]} 16. Qe2 {[%emt 0:00:32]} Nxe5 {[%emt 0:01:08]} 17. fxe5 {[%emt 0:00:26]} Ne4 {[%emt 0:00:12]} 18. Bxe4 {[%emt 0:00:01]} dxe4 {[%emt 0:00:56]} 19. g4 {[%emt 0:00:02]} Qg5 {[%emt 0:00:26]} 20. Rf4 {[%emt 0:00:02]} h5 {[%emt 0:00:16]} 21. h4 {[%emt 0:00:26]} Qxh4 {[%emt 0:00:02]} 22. gxh5 {[%emt 0:00:16]} Qg3+ {[%emt 0:00:17]} 23. Kh1 {[%emt 0:00:23]} Qh3+ {[%emt 0:00:03]} 24. Qh2 {[%emt 0:00:31]} Qxh2+ {[%emt 0:03:16]} 25. Kxh2 {[%emt 0:00:02]} Be8 {[%emt 0:00:00]} 26. Rh4 {[%emt 0:00:13]} Kh7 {[%emt 0:00:25]} 27. Kg3 {[%emt 0:00:47]} Kh6 {[%emt 0:00:23]} 28. Rch1 {[%emt 0:00:01]} b5 {[%emt 0:00:15]} 29. R4h2 {[%emt 0:00:01]} Bd7 {[%emt 0:00:37]} 30. Kf4 {[%emt 0:00:23]} b4 {[%emt 0:00:03]} 31. Nb1 {[%emt 0:00:07]} a5 {[%emt 0:00:32]} 32. Nd2 {[%emt 0:00:25]} a4 {[%emt 0:00:04]} 33. b3 {[%emt 0:00:00]} Rc2 {[%emt 0:00:36]} 34. Nc4 {[%emt 0:00:48]} axb3 {[%emt 0:00:06]} 35. axb3 {[%emt 0:00:01]} Rxh2 {[%emt 0:00:02]} 36. Rxh2 {[%emt 0:00:00]} Be8 {[%emt 0:00:18]} 37. d5 {[%emt 0:00:01]} Bxh5 {[%emt 0:00:18]} 38. Rg2 {[%emt 0:00:22]} Bg4 {[%emt 0:00:57]} 39. Rh2+ {[%emt 0:00:02]} Bh5 {[%emt 0:00:01]} 40. Rg2 {[%emt 0:00:16]} Bg4 {[%emt 0:00:01]} 41. Rh2+ {[%emt 0:00:10]} Bh5 {[%emt 0:00:05]} 1/2-1/2

[Event "AI Cup Div-3 2023"]
[Site "Online"]
[Date "2023.09.25"]
[Round "1.2"]
[White "Chigaev, Maksim"]
[Black "Esipenko, Andrey"]
[Result "0-1"]
[Annotator "TA"]
[ECO "C43"]
[WhiteElo "2615"]
[BlackElo "2683"]
[PlyCount "68"]
[EventDate "2023.09.18"]
[EventType "k.o."]
[EventCountry "NET"]
[SourceTitle "playchess.com"]
[Source "ChessBase"]
[SourceQuality "1"]
[TimeControl "900+3"]

{[%evp 9,68,16,17,14,2,4,14,0,10,14,12,0,16,-2,0,0,0,0,0,0,13,25,55,0,0,0,0,0,0,-65,-82,-72,-58,-152,-165,-147,-135,-159,-148,-168,-151,-254,-244,-258,-266,-406,-398,-399,-394,-440,-429,-514,-506,-512,-507,-570,-562,-567,-560,-587,-539]} 1. e4 {[%emt 0:00:04]} e5 {[%emt 0:00:09]} 2. Nf3 {[%emt 0:00:01]} Nf6 {[%emt 0:00:04]} 3. d4 {[%emt 0:00:05]} Nxe4 {[%emt 0:00:05]} 4. dxe5 {[%emt 0:00:01]} d5 {[%emt 0:00:10]} 5. Nbd2 {[%emt 0:00:02]} Nxd2 {[%emt 0:00:12]} 6. Bxd2 {[%emt 0:00:03] C43: Petroff Defence: 3 d4.} Be7 {[%emt 0:00:01]} 7. Bd3 {[%emt 0:00:05]} c5 {[%emt 0:00:01]} 8. c3 {[%emt 0:00:02] The position is equal.} Nc6 {[%emt 0:00:01]} 9. O-O {[%emt 0:00:07]} Be6 {[%emt 0:00:01]} 10. Re1 {[%emt 0:00:04] [#]} g5 $5 $146 {[%emt 0:00:21][%mdl 8] New and interesting.} ({Predecessor:} 10... O-O 11. h3 a6 12. Bf4 b5 13. Bc2 Rc8 14. Qd3 g6 15. Qd2 b4 16. Bg5 Bxg5 17. Nxg5 Kg7 {½-½ Safarli,E (2600)-Jobava,B (2600) Montebelluna Grandiscacchi op 2022 (3)}) 11. Be3 {[%emt 0:00:32]} a6 {[%emt 0:02:45]} (11... g4 $5 12. Nd2 $8 h5 $11) 12. b4 {[%emt 0:02:15]} g4 {[%emt 0:01:49]} 13. Nd2 {[%emt 0:00:03]} cxb4 {[%emt 0:00:26]} (13... Nxe5 14. Bc2 $14) 14. cxb4 {[%emt 0:00:03]} Bxb4 {[%emt 0:00:05]} 15. Rb1 {[%emt 0:00:31][%cal Oa2a3]} Qe7 {[%emt 0:01:04]} (15... Nxe5 $2 16. Qa4+ b5 17. Qxb4 (17. Bxb5+ axb5 18. Qxb4 f6 $16) 17... Nxd3 18. Qd4 Nxe1 19. Qxh8+ Kd7 20. Qxh7 (20. Qxd8+ Kxd8 21. Rxe1 Rc8 $18) 20... Nxg2 21. Kxg2 $18) 16. Qa4 {[%emt 0:00:50]} ({White should play} 16. Bh6 $1 $14) 16... O-O $11 {[%emt 0:00:30]} 17. a3 $1 {[%emt 0:04:43]} Bc3 $36 {[%emt 0:00:36][%cal Bb4c3,Bc3e5,Be5d4,Bd4b6][%mdl 2080] Black fights for an advantage.} 18. Bxh7+ {[%emt 0:00:51][%mdl 64] [#] Decoy} Kg7 {[%emt 0:00:02] Strongly threatening ...d4.} ({Much less strong is} 18... Kxh7 19. Qc2+ Kg8 20. Qxc3 $14) 19. Qf4 {[%emt 0:01:37]} Qh4 $1 $15 {[%emt 0:00:13] Really sharp!} ({Of course not} 19... Kxh7 20. Qh6+ Kg8 21. Rxb7 Qxb7 22. Qg5+ Kh8 23. Qh6+ Kg8 24. Qg5+ Kh8 25. Qh6+ Kg8 $11) 20. Bd3 {[%emt 0:02:01] Threatens to win with Nf3.} Bxe5 {[%emt 0:00:04]} 21. Qg5+ {[%emt 0:00:31]} ({White should try} 21. Nf3 $1 $15 Bxf4 22. Nxh4 Bxe3 23. Rxe3) 21... Qxg5 $17 {[%emt 0:00:01]} 22. Bxg5 {[%emt 0:00:00] [#]} b5 {[%emt 0:00:29]} 23. f4 {[%emt 0:00:42]} Bd4+ {[%emt 0:00:13]} 24. Kh1 {[%emt 0:00:03]} Bd7 {[%emt 0:00:00]} 25. f5 {[%emt 0:00:17]} (25. Nb3 $17) 25... f6 $19 {[%emt 0:00:12]} 26. Bf4 {[%emt 0:00:01]} Ne5 {[%emt 0:00:02][%cal Bc6e5,Be5c4,Bc4a3][%mdl 32]} 27. Bc2 {[%emt 0:00:18]} (27. Rb3 {might work better.}) 27... Rac8 {[%emt 0:00:02]} 28. Nb3 {[%emt 0:00:01]} Bb6 {[%emt 0:00:00]} 29. Rbc1 {[%emt 0:00:16]} Rfe8 {[%emt 0:00:06] Black is clearly winning.} 30. Bb1 {[%emt 0:00:05]} Nc4 {[%emt 0:00:04]} 31. h3 {[%emt 0:00:06]} gxh3 {[%emt 0:00:06]} 32. gxh3 {[%emt 0:00:00]} Nxa3 {[%emt 0:00:07]} 33. Bd3 {[%emt 0:00:01]} Nc4 {[%emt 0:00:04]} 34. Kh2 {[%emt 0:00:04]} a5 {[%emt 0:00:08] Weighted Error Value: White=0.29 (precise) /Black=0.03 (flawless)} 0-1